[Event "Titled Tuesday Blitz July 11 Early 2023"]
[White "Moskvin, Anatoly"]
[Black "Jaracz, Pawel"]
[WhiteFideId "24199990"]
[BlackFideId "1102222"]
[WhiteElo "2525"]
[BlackElo "2703"]
[Result "1-0"]
[Round "7"]
[TimeControl "180+2"]
[Date "2023.07.11"]
[WhiteClock "0:00:29"]
[BlackClock "0:00:42"]
[Board "50"]

1. e4 {[%clk 0:02:58]}  e5 {[%clk 0:02:59]} 2. Nf3 {[%clk 0:02:58]}  Nc6 {[%clk 0:02:59]} 3. Bc4 {[%clk 0:02:59]}  Bc5 {[%clk 0:02:57]} 4. c3 {[%clk 0:02:59]}  Nf6 {[%clk 0:02:56]} 5. d3 {[%clk 0:03:00]}  O-O {[%clk 0:02:55]} 6. Nbd2 {[%clk 0:03:00]}  d5 {[%clk 0:02:55]} 7. Bb3 {[%clk 0:03:01]}  Re8 {[%clk 0:02:52]} 8. a4 {[%clk 0:03:00]}  Bg4 {[%clk 0:02:50]} 9. h3 {[%clk 0:02:59]}  Bh5 {[%clk 0:02:50]} 10. Qe2 {[%clk 0:02:57]}  Qd7 {[%clk 0:02:37]} 11. g4 {[%clk 0:02:14]}  Bg6 {[%clk 0:02:36]} 12. Nh4 {[%clk 0:02:15]}  Rad8 {[%clk 0:02:30]} 13. Bc2 {[%clk 0:02:14]}  a6 {[%clk 0:01:56]} 14. Nf5 {[%clk 0:02:03]}  b5 {[%clk 0:01:53]} 15. Rg1 {[%clk 0:01:28]}  d4 {[%clk 0:01:25]} 16. axb5 {[%clk 0:01:27]}  axb5 {[%clk 0:01:25]} 17. Nb3 {[%clk 0:01:28]}  Bb6 {[%clk 0:01:24]} 18. Bg5 {[%clk 0:01:20]}  dxc3 {[%clk 0:01:17]} 19. bxc3 {[%clk 0:01:01]}  b4 {[%clk 0:01:18]} 20. Bxf6 {[%clk 0:01:01]}  gxf6 {[%clk 0:01:17]} 21. Qd2 {[%clk 0:00:55]}  bxc3 {[%clk 0:01:12]} 22. Qh6 {[%clk 0:00:53]}  Qxf5 {[%clk 0:00:51]} 23. gxf5 {[%clk 0:00:52]}  Re7 {[%clk 0:00:48]} 24. h4 {[%clk 0:00:36]}  Kh8 {[%clk 0:00:46]} 25. h5 {[%clk 0:00:35]}  Rg8 {[%clk 0:00:43]} 26. hxg6 {[%clk 0:00:34]}  fxg6 {[%clk 0:00:44]} 27. fxg6 {[%clk 0:00:32]}  Reg7 {[%clk 0:00:43]} 28. Rh1 {[%clk 0:00:29]}  Rxg6 {[%clk 0:00:42]} 29. Qxh7# {[%clk 0:00:29]} 1-0


[Site "https://www.chess.com"]

[Event "Titled Tuesday Blitz July 11 Early 2023"]
[White "Shuvalova, Polina"]
[Black "Akylbek2021"]
[WhiteFideId "24171760"]
[WhiteElo "2690"]
[BlackElo "2519"]
[Result "1/2-1/2"]
[Round "7"]
[TimeControl "180+2"]
[Date "2023.07.11"]
[WhiteClock "0:00:17"]
[BlackClock "0:00:32"]
[Board "51"]

1. e4 {[%clk 0:03:00]}  e6 {[%clk 0:03:00]} 2. d4 {[%clk 0:03:00]}  d5 {[%clk 0:03:01]} 3. exd5 {[%clk 0:03:01]}  exd5 {[%clk 0:03:01]} 4. Nf3 {[%clk 0:03:02]}  Bd6 {[%clk 0:03:01]} 5. Bd3 {[%clk 0:03:02]}  Nc6 {[%clk 0:03:02]} 6. O-O {[%clk 0:03:01]}  Bg4 {[%clk 0:03:02]} 7. c3 {[%clk 0:03:01]}  Nge7 {[%clk 0:03:02]} 8. Re1 {[%clk 0:03:00]}  Qd7 {[%clk 0:03:02]} 9. Nbd2 {[%clk 0:02:58]}  f6 {[%clk 0:03:01]} 10. b4 {[%clk 0:02:54]}  O-O {[%clk 0:03:01]} 11. Qc2 {[%clk 0:02:47]}  Bf5 {[%clk 0:02:52]} 12. Nf1 {[%clk 0:02:44]}  Rae8 {[%clk 0:02:49]} 13. Bd2 {[%clk 0:02:39]}  Bxd3 {[%clk 0:02:48]} 14. Qxd3 {[%clk 0:02:39]}  a6 {[%clk 0:02:44]} 15. a4 {[%clk 0:02:36]}  Qf5 {[%clk 0:02:43]} 16. Qxf5 {[%clk 0:02:31]}  Nxf5 {[%clk 0:02:43]} 17. Ng3 {[%clk 0:02:20]}  Nxg3 {[%clk 0:02:35]} 18. hxg3 {[%clk 0:02:21]}  Nb8 {[%clk 0:02:35]} 19. Bf4 {[%clk 0:02:18]}  Nc6 {[%clk 0:02:33]} 20. Nd2 {[%clk 0:02:11]}  Bxf4 {[%clk 0:02:23]} 21. gxf4 {[%clk 0:02:10]}  Kf7 {[%clk 0:02:23]} 22. Nb3 {[%clk 0:02:08]}  b6 {[%clk 0:02:23]} 23. Kf1 {[%clk 0:02:02]}  Re4 {[%clk 0:02:21]} 24. g3 {[%clk 0:01:53]}  Rfe8 {[%clk 0:02:17]} 25. Rxe4 {[%clk 0:01:52]}  dxe4 {[%clk 0:02:18]} 26. a5 {[%clk 0:01:47]}  bxa5 {[%clk 0:02:02]} 27. Nxa5 {[%clk 0:01:45]}  Ne7 {[%clk 0:02:03]} 28. c4 {[%clk 0:01:36]}  Nf5 {[%clk 0:01:58]} 29. d5 {[%clk 0:01:35]}  e3 {[%clk 0:01:55]} 30. Nc6 {[%clk 0:01:22]}  h5 {[%clk 0:01:25]} 31. Re1 {[%clk 0:00:46]}  exf2 {[%clk 0:01:05]} 32. Rxe8 {[%clk 0:00:44]}  Kxe8 {[%clk 0:01:06]} 33. Kxf2 {[%clk 0:00:41]}  Nd6 {[%clk 0:00:58]} 34. c5 {[%clk 0:00:41]}  Ne4+ {[%clk 0:00:59]} 35. Kf3 {[%clk 0:00:39]}  Nc3 {[%clk 0:00:59]} 36. Nb8 {[%clk 0:00:37]}  Nxd5 {[%clk 0:00:58]} 37. Nxa6 {[%clk 0:00:37]}  c6 {[%clk 0:00:55]} 38. Ke4 {[%clk 0:00:36]}  Kd7 {[%clk 0:00:53]} 39. Kd4 {[%clk 0:00:36]}  g5 {[%clk 0:00:42]} 40. fxg5 {[%clk 0:00:34]}  fxg5 {[%clk 0:00:40]} 41. Nb8+ {[%clk 0:00:29]}  Kc7 {[%clk 0:00:40]} 42. Nxc6 {[%clk 0:00:30]}  h4 {[%clk 0:00:37]} 43. gxh4 {[%clk 0:00:27]}  gxh4 {[%clk 0:00:37]} 44. Ne5 {[%clk 0:00:19]}  h3 {[%clk 0:00:33]} 45. Nf3 {[%clk 0:00:16]}  Nxb4 {[%clk 0:00:32]} 46. Ke4 {[%clk 0:00:16]}  Kc6 {[%clk 0:00:31]} 47. Kf4 {[%clk 0:00:16]}  Kxc5 {[%clk 0:00:31]} 48. Kg3 {[%clk 0:00:17]}  Nd5 {[%clk 0:00:32]} 49. Kxh3 {[%clk 0:00:17]} 1/2-1/2


[Site "https://www.chess.com"]

[Event "Titled Tuesday Blitz July 11 Early 2023"]
[White "Rakitic2010"]
[Black "Katz, Alexander"]
[BlackFideId "2039796"]
[WhiteElo "2446"]
[BlackElo "2648"]
[Result "1-0"]
[Round "7"]
[TimeControl "180+2"]
[Date "2023.07.11"]
[WhiteClock "0:00:07"]
[BlackClock "0:00:01"]
[Board "55"]

1. e4 {[%clk 0:03:00]}  c5 {[%clk 0:02:49]} 2. Nf3 {[%clk 0:02:47]}  Nc6 {[%clk 0:02:49]} 3. d4 {[%clk 0:02:48]}  cxd4 {[%clk 0:02:48]} 4. Nxd4 {[%clk 0:02:48]}  g6 {[%clk 0:02:48]} 5. c4 {[%clk 0:02:47]}  Bg7 {[%clk 0:02:48]} 6. Be3 {[%clk 0:02:48]}  Nf6 {[%clk 0:02:48]} 7. Nc3 {[%clk 0:02:48]}  d6 {[%clk 0:02:48]} 8. f3 {[%clk 0:02:48]}  O-O {[%clk 0:02:47]} 9. Be2 {[%clk 0:02:48]}  Nxd4 {[%clk 0:02:48]} 10. Bxd4 {[%clk 0:02:46]}  Be6 {[%clk 0:02:48]} 11. O-O {[%clk 0:02:45]}  a5 {[%clk 0:02:48]} 12. Rc1 {[%clk 0:02:44]}  a4 {[%clk 0:02:48]} 13. Qd2 {[%clk 0:02:44]}  Qa5 {[%clk 0:02:46]} 14. Rfd1 {[%clk 0:02:43]}  Rfc8 {[%clk 0:02:44]} 15. b3 {[%clk 0:02:20]}  axb3 {[%clk 0:02:38]} 16. axb3 {[%clk 0:02:21]}  Qb4 {[%clk 0:02:36]} 17. Qb2 {[%clk 0:02:09]}  Bxc4 {[%clk 0:02:01]} 18. Na2 {[%clk 0:01:46]}  Qa3 {[%clk 0:01:09]} 19. Qxa3 {[%clk 0:01:31]}  Rxa3 {[%clk 0:01:09]} 20. Bxc4 {[%clk 0:01:32]}  d5 {[%clk 0:00:48]} 21. Bxd5 {[%clk 0:01:01]}  Rxc1 {[%clk 0:00:34]} 22. Nxc1 {[%clk 0:01:02]}  b5 {[%clk 0:00:16]} 23. Bc6 {[%clk 0:00:58]}  b4 {[%clk 0:00:15]} 24. Bc5 {[%clk 0:00:55]}  Ra1 {[%clk 0:00:16]} 25. Rd8+ {[%clk 0:00:49]}  Bf8 {[%clk 0:00:16]} 26. Be3 {[%clk 0:00:39]}  Kg7 {[%clk 0:00:15]} 27. Kf2 {[%clk 0:00:38]}  e6 {[%clk 0:00:14]} 28. Nd3 {[%clk 0:00:37]}  Ra2+ {[%clk 0:00:14]} 29. Kg3 {[%clk 0:00:36]}  Nh5+ {[%clk 0:00:14]} 30. Kh3 {[%clk 0:00:35]}  Be7 {[%clk 0:00:15]} 31. Rd7 {[%clk 0:00:34]}  Bf6 {[%clk 0:00:15]} 32. e5 {[%clk 0:00:33]}  Bxe5 {[%clk 0:00:10]} 33. Nxe5 {[%clk 0:00:32]}  Re2 {[%clk 0:00:11]} 34. Rxf7+ {[%clk 0:00:32]}  Kg8 {[%clk 0:00:11]} 35. Bd4 {[%clk 0:00:27]}  g5 {[%clk 0:00:11]} 36. g3 {[%clk 0:00:18]}  Rd2 {[%clk 0:00:11]} 37. Be3 {[%clk 0:00:15]}  Re2 {[%clk 0:00:11]} 38. Ng4 {[%clk 0:00:16]}  Kxf7 {[%clk 0:00:10]} 39. Bxg5 {[%clk 0:00:15]}  Ng7 {[%clk 0:00:07]} 40. Be4 {[%clk 0:00:15]}  Nf5 {[%clk 0:00:07]} 41. Ne5+ {[%clk 0:00:14]}  Kg7 {[%clk 0:00:07]} 42. g4 {[%clk 0:00:13]}  Nd4 {[%clk 0:00:08]} 43. Nd3 {[%clk 0:00:13]}  Nxb3 {[%clk 0:00:07]} 44. Nxb4 {[%clk 0:00:13]}  Nd2 {[%clk 0:00:06]} 45. Bxd2 {[%clk 0:00:12]}  Rxd2 {[%clk 0:00:07]} 46. Nd3 {[%clk 0:00:13]}  h6 {[%clk 0:00:07]} 47. Kg3 {[%clk 0:00:13]}  Kf6 {[%clk 0:00:08]} 48. Nf4 {[%clk 0:00:14]}  e5 {[%clk 0:00:07]} 49. Nd5+ {[%clk 0:00:13]}  Ke6 {[%clk 0:00:07]} 50. Ne3 {[%clk 0:00:14]}  Kf6 {[%clk 0:00:06]} 51. h4 {[%clk 0:00:14]}  Rd8 {[%clk 0:00:05]} 52. Nd5+ {[%clk 0:00:14]}  Kg7 {[%clk 0:00:05]} 53. g5 {[%clk 0:00:15]}  hxg5 {[%clk 0:00:05]} 54. hxg5 {[%clk 0:00:15]}  Rf8 {[%clk 0:00:06]} 55. Kg4 {[%clk 0:00:16]}  Rf7 {[%clk 0:00:06]} 56. Bf5 {[%clk 0:00:15]}  Ra7 {[%clk 0:00:06]} 57. g6 {[%clk 0:00:14]}  Ra4+ {[%clk 0:00:07]} 58. Be4 {[%clk 0:00:14]}  Ra1 {[%clk 0:00:05]} 59. Ne3 {[%clk 0:00:14]}  Rg1+ {[%clk 0:00:06]} 60. Kf5 {[%clk 0:00:15]}  Rxg6 {[%clk 0:00:05]} 61. Kxe5 {[%clk 0:00:15]}  Ra6 {[%clk 0:00:05]} 62. f4 {[%clk 0:00:14]}  Kf7 {[%clk 0:00:05]} 63. Nd5 {[%clk 0:00:14]}  Ra5 {[%clk 0:00:05]} 64. f5 {[%clk 0:00:15]}  Ra1 {[%clk 0:00:05]} 65. Nf4 {[%clk 0:00:14]}  Ra5+ {[%clk 0:00:05]} 66. Bd5+ {[%clk 0:00:14]}  Kf8 {[%clk 0:00:06]} 67. f6 {[%clk 0:00:14]}  Ra7 {[%clk 0:00:05]} 68. Ng6+ {[%clk 0:00:13]}  Ke8 {[%clk 0:00:05]} 69. Bc6+ {[%clk 0:00:12]}  Kf7 {[%clk 0:00:06]} 70. Nf4 {[%clk 0:00:10]}  Kf8 {[%clk 0:00:03]} 71. Bd5 {[%clk 0:00:10]}  Ke8 {[%clk 0:00:03]} 72. Kf5 {[%clk 0:00:09]}  Rc7 {[%clk 0:00:03]} 73. Kg6 {[%clk 0:00:09]}  Ra7 {[%clk 0:00:04]} 74. Ne6 {[%clk 0:00:09]}  Rd7 {[%clk 0:00:02]} 75. Ng7+ {[%clk 0:00:05]}  Kf8 {[%clk 0:00:02]} 76. Ne6+ {[%clk 0:00:05]}  Ke8 {[%clk 0:00:02]} 77. Be4 {[%clk 0:00:05]}  Ra7 {[%clk 0:00:02]} 78. Bc6+ {[%clk 0:00:06]}  Rd7 {[%clk 0:00:02]} 79. Bxd7+ {[%clk 0:00:06]}  Kxd7 {[%clk 0:00:01]} 80. Kf7 {[%clk 0:00:07]} 1-0


[Site "https://www.chess.com"]

[Event "Titled Tuesday Blitz July 11 Early 2023"]
[White "Lopez Idarraga, Daniel Eduardo"]
[Black "Goldin, Alexander"]
[WhiteFideId "4405501"]
[BlackFideId "2019540"]
[WhiteElo "2351"]
[BlackElo "2629"]
[Result "1-0"]
[Round "7"]
[TimeControl "180+2"]
[Date "2023.07.11"]
[WhiteClock "0:00:21"]
[BlackClock "0:00:01"]
[Board "57"]

1. e4 {[%clk 0:03:00]}  e5 {[%clk 0:02:59]} 2. Nf3 {[%clk 0:03:00]}  Nc6 {[%clk 0:02:59]} 3. Bb5 {[%clk 0:03:00]}  a6 {[%clk 0:03:00]} 4. Ba4 {[%clk 0:03:00]}  d6 {[%clk 0:03:00]} 5. c4 {[%clk 0:03:00]}  Bd7 {[%clk 0:03:01]} 6. Nc3 {[%clk 0:03:00]}  Nge7 {[%clk 0:03:01]} 7. h4 {[%clk 0:02:56]}  h5 {[%clk 0:02:59]} 8. d4 {[%clk 0:02:50]}  exd4 {[%clk 0:02:56]} 9. Nxd4 {[%clk 0:02:49]}  Nxd4 {[%clk 0:02:55]} 10. Qxd4 {[%clk 0:02:47]}  Bxa4 {[%clk 0:02:53]} 11. Nxa4 {[%clk 0:02:48]}  Ng6 {[%clk 0:02:40]} 12. Bg5 {[%clk 0:02:45]}  Be7 {[%clk 0:02:22]} 13. Bxe7 {[%clk 0:02:11]}  Qxe7 {[%clk 0:02:22]} 14. O-O-O {[%clk 0:02:10]}  Qe5 {[%clk 0:01:58]} 15. c5 {[%clk 0:02:00]}  O-O-O {[%clk 0:01:30]} 16. Qxe5 {[%clk 0:01:49]}  dxe5 {[%clk 0:01:28]} 17. g3 {[%clk 0:01:48]}  Rxd1+ {[%clk 0:01:12]} 18. Rxd1 {[%clk 0:01:47]}  Nf8 {[%clk 0:01:07]} 19. Rd5 {[%clk 0:01:40]}  f6 {[%clk 0:01:05]} 20. c6 {[%clk 0:01:40]}  b6 {[%clk 0:00:59]} 21. f4 {[%clk 0:01:30]}  exf4 {[%clk 0:00:49]} 22. gxf4 {[%clk 0:01:31]}  Ng6 {[%clk 0:00:48]} 23. Rd7 {[%clk 0:01:22]}  Rg8 {[%clk 0:00:41]} 24. Rd5 {[%clk 0:00:53]}  Nxf4 {[%clk 0:00:39]} 25. Rf5 {[%clk 0:00:54]}  Nd3+ {[%clk 0:00:34]} 26. Kd2 {[%clk 0:00:50]}  Ne5 {[%clk 0:00:34]} 27. Rxh5 {[%clk 0:00:50]}  Nxc6 {[%clk 0:00:33]} 28. Nc3 {[%clk 0:00:49]}  Ne5 {[%clk 0:00:31]} 29. Ke2 {[%clk 0:00:44]}  Kd7 {[%clk 0:00:31]} 30. Rh7 {[%clk 0:00:43]}  c6 {[%clk 0:00:28]} 31. Nd1 {[%clk 0:00:42]}  Ke6 {[%clk 0:00:28]} 32. Ne3 {[%clk 0:00:42]}  g6 {[%clk 0:00:26]} 33. Ra7 {[%clk 0:00:36]}  a5 {[%clk 0:00:26]} 34. a4 {[%clk 0:00:34]}  Rh8 {[%clk 0:00:25]} 35. Rb7 {[%clk 0:00:34]}  Nd7 {[%clk 0:00:22]} 36. Ng2 {[%clk 0:00:31]}  Kd6 {[%clk 0:00:16]} 37. Kf3 {[%clk 0:00:28]}  g5 {[%clk 0:00:16]} 38. hxg5 {[%clk 0:00:26]}  fxg5 {[%clk 0:00:17]} 39. Ne3 {[%clk 0:00:27]}  Rh3+ {[%clk 0:00:16]} 40. Ke2 {[%clk 0:00:27]}  Rh2+ {[%clk 0:00:17]} 41. Kd3 {[%clk 0:00:27]}  Rh3 {[%clk 0:00:16]} 42. Ke2 {[%clk 0:00:27]}  Rh2+ {[%clk 0:00:16]} 43. Kf3 {[%clk 0:00:27]}  Rxb2 {[%clk 0:00:16]} 44. Nc4+ {[%clk 0:00:26]}  Kc5 {[%clk 0:00:13]} 45. Nxb2 {[%clk 0:00:27]}  Ne5+ {[%clk 0:00:12]} 46. Kg3 {[%clk 0:00:27]}  b5 {[%clk 0:00:13]} 47. Re7 {[%clk 0:00:25]}  Kd6 {[%clk 0:00:09]} 48. Rg7 {[%clk 0:00:25]}  b4 {[%clk 0:00:06]} 49. Rxg5 {[%clk 0:00:24]}  c5 {[%clk 0:00:07]} 50. Kf4 {[%clk 0:00:21]}  c4 {[%clk 0:00:06]} 51. Rxe5 {[%clk 0:00:20]}  c3 {[%clk 0:00:06]} 52. Rd5+ {[%clk 0:00:20]}  Kc6 {[%clk 0:00:05]} 53. Nd3 {[%clk 0:00:21]}  b3 {[%clk 0:00:01]} 54. Rc5+ {[%clk 0:00:21]} 1-0


[Site "https://www.chess.com"]

[Event "Titled Tuesday Blitz July 11 Early 2023"]
[White "Iskusnyh, Sergei"]
[Black "Kev4444444444"]
[WhiteFideId "4120027"]
[WhiteElo "2624"]
[BlackElo "2233"]
[Result "1-0"]
[Round "7"]
[TimeControl "180+2"]
[Date "2023.07.11"]
[WhiteClock "0:00:14"]
[BlackClock "0:00:29"]
[Board "58"]

1. d4 {[%clk 0:03:00]}  d5 {[%clk 0:02:59]} 2. c4 {[%clk 0:03:00]}  e6 {[%clk 0:02:59]} 3. Nf3 {[%clk 0:03:00]}  Nf6 {[%clk 0:03:00]} 4. g3 {[%clk 0:03:00]}  Bb4+ {[%clk 0:03:00]} 5. Nbd2 {[%clk 0:02:56]}  O-O {[%clk 0:03:00]} 6. Bg2 {[%clk 0:02:53]}  dxc4 {[%clk 0:02:59]} 7. O-O {[%clk 0:02:52]}  b5 {[%clk 0:02:58]} 8. a4 {[%clk 0:02:51]}  c6 {[%clk 0:02:55]} 9. Qc2 {[%clk 0:02:50]}  h6 {[%clk 0:02:44]} 10. axb5 {[%clk 0:02:36]}  cxb5 {[%clk 0:02:43]} 11. Ng5 {[%clk 0:02:36]}  hxg5 {[%clk 0:02:29]} 12. Bxa8 {[%clk 0:02:36]}  Qxd4 {[%clk 0:02:29]} 13. Nf3 {[%clk 0:02:35]}  Qb6 {[%clk 0:02:24]} 14. Nxg5 {[%clk 0:02:26]}  Bc5 {[%clk 0:02:21]} 15. Bf3 {[%clk 0:02:04]}  Nbd7 {[%clk 0:02:18]} 16. Bd2 {[%clk 0:01:58]}  Ne5 {[%clk 0:02:15]} 17. Bg2 {[%clk 0:01:52]}  Neg4 {[%clk 0:01:55]} 18. e3 {[%clk 0:01:51]}  Ne5 {[%clk 0:01:55]} 19. Ba5 {[%clk 0:01:50]}  Qb8 {[%clk 0:01:52]} 20. Bc3 {[%clk 0:01:49]}  a6 {[%clk 0:01:42]} 21. Rfd1 {[%clk 0:01:38]}  Bd6 {[%clk 0:01:35]} 22. Ne4 {[%clk 0:01:29]}  Nxe4 {[%clk 0:01:31]} 23. Qxe4 {[%clk 0:01:29]}  Bc7 {[%clk 0:01:21]} 24. Qh4 {[%clk 0:01:07]}  Bb7 {[%clk 0:01:14]} 25. Bxb7 {[%clk 0:00:53]}  Qxb7 {[%clk 0:01:13]} 26. Bxe5 {[%clk 0:00:54]}  Bxe5 {[%clk 0:01:14]} 27. Rd8 {[%clk 0:00:54]}  Bf6 {[%clk 0:01:06]} 28. Rxf8+ {[%clk 0:00:54]}  Kxf8 {[%clk 0:01:07]} 29. Qh8+ {[%clk 0:00:54]}  Ke7 {[%clk 0:01:07]} 30. Rd1 {[%clk 0:00:55]}  Qc7 {[%clk 0:01:07]} 31. Rd2 {[%clk 0:00:48]}  b4 {[%clk 0:01:06]} 32. Qa8 {[%clk 0:00:42]}  a5 {[%clk 0:01:04]} 33. Qe4 {[%clk 0:00:38]}  c3 {[%clk 0:01:01]} 34. bxc3 {[%clk 0:00:38]}  Bxc3 {[%clk 0:01:01]} 35. Rd1 {[%clk 0:00:23]}  a4 {[%clk 0:00:59]} 36. h4 {[%clk 0:00:15]}  a3 {[%clk 0:00:54]} 37. Qc2 {[%clk 0:00:15]}  Qc4 {[%clk 0:00:50]} 38. Qa4 {[%clk 0:00:15]}  a2 {[%clk 0:00:35]} 39. Qa5 {[%clk 0:00:15]}  Kf6 {[%clk 0:00:29]} 40. Qg5# {[%clk 0:00:14]} 1-0


[Site "https://www.chess.com"]

[Event "Titled Tuesday Blitz July 11 Early 2023"]
[White "Fiorito, Francisco"]
[Black "Dau Khuong Duy"]
[WhiteFideId "180165"]
[BlackFideId "12424722"]
[WhiteElo "2537"]
[BlackElo "2888"]
[Result "1-0"]
[Round "7"]
[TimeControl "180+2"]
[Date "2023.07.11"]
[WhiteClock "0:00:10"]
[BlackClock "0:00:05"]
[Board "59"]

1. d4 {[%clk 0:03:00]}  Nf6 {[%clk 0:02:59]} 2. Nc3 {[%clk 0:03:01]}  d5 {[%clk 0:02:59]} 3. Bf4 {[%clk 0:03:01]}  g6 {[%clk 0:02:58]} 4. e3 {[%clk 0:03:00]}  Bg7 {[%clk 0:02:58]} 5. Nf3 {[%clk 0:03:01]}  O-O {[%clk 0:02:57]} 6. h4 {[%clk 0:03:02]}  h5 {[%clk 0:02:56]} 7. Ne5 {[%clk 0:03:00]}  Nbd7 {[%clk 0:02:48]} 8. Be2 {[%clk 0:03:00]}  c6 {[%clk 0:02:47]} 9. Qd2 {[%clk 0:02:54]}  Nxe5 {[%clk 0:02:46]} 10. Bxe5 {[%clk 0:02:52]}  b5 {[%clk 0:02:46]} 11. f3 {[%clk 0:02:52]}  a5 {[%clk 0:02:39]} 12. g4 {[%clk 0:02:47]}  hxg4 {[%clk 0:02:32]} 13. Bxf6 {[%clk 0:02:48]}  exf6 {[%clk 0:02:15]} 14. fxg4 {[%clk 0:02:47]}  Re8 {[%clk 0:02:15]} 15. h5 {[%clk 0:02:21]}  Qe7 {[%clk 0:02:11]} 16. hxg6 {[%clk 0:02:20]}  fxg6 {[%clk 0:02:12]} 17. Rh3 {[%clk 0:02:19]}  a4 {[%clk 0:01:52]} 18. Nd1 {[%clk 0:02:11]}  b4 {[%clk 0:01:47]} 19. a3 {[%clk 0:02:06]}  Rb8 {[%clk 0:01:41]} 20. axb4 {[%clk 0:01:59]}  Rxb4 {[%clk 0:01:34]} 21. Ra3 {[%clk 0:01:59]}  f5 {[%clk 0:01:25]} 22. gxf5 {[%clk 0:01:55]}  Bxf5 {[%clk 0:01:26]} 23. Rh1 {[%clk 0:01:52]}  c5 {[%clk 0:01:16]} 24. c3 {[%clk 0:01:44]}  Rbb8 {[%clk 0:01:05]} 25. Rxa4 {[%clk 0:01:42]}  cxd4 {[%clk 0:01:05]} 26. cxd4 {[%clk 0:01:39]}  Rbc8 {[%clk 0:01:05]} 27. Bd3 {[%clk 0:01:29]}  Qd7 {[%clk 0:00:54]} 28. Rb4 {[%clk 0:01:17]}  Bxd3 {[%clk 0:00:44]} 29. Qxd3 {[%clk 0:01:17]}  Qg4 {[%clk 0:00:44]} 30. Qe2 {[%clk 0:00:55]}  Qe4 {[%clk 0:00:42]} 31. Qh2 {[%clk 0:00:44]}  g5 {[%clk 0:00:37]} 32. Rg1 {[%clk 0:00:26]}  Rc2 {[%clk 0:00:30]} 33. Qg3 {[%clk 0:00:17]}  Qd3 {[%clk 0:00:25]} 34. Rg2 {[%clk 0:00:16]}  Rf8 {[%clk 0:00:20]} 35. Rb8 {[%clk 0:00:10]}  Rxb8 {[%clk 0:00:06]} 36. Qxb8+ {[%clk 0:00:11]}  Kh7 {[%clk 0:00:05]} 37. Qh2+ {[%clk 0:00:10]} 1-0


[Site "https://www.chess.com"]

[Event "Titled Tuesday Blitz July 11 Early 2023"]
[White "Tregubov, Pavel V."]
[Black "Tokman, Ariel"]
[WhiteFideId "4115341"]
[BlackFideId "117420"]
[WhiteElo "2674"]
[BlackElo "2536"]
[Result "1-0"]
[Round "7"]
[TimeControl "180+2"]
[Date "2023.07.11"]
[WhiteClock "0:00:37"]
[BlackClock "0:00:00"]
[Board "61"]

1. e4 {[%clk 0:03:00]}  d6 {[%clk 0:02:57]} 2. d4 {[%clk 0:03:00]}  Nf6 {[%clk 0:02:58]} 3. Nc3 {[%clk 0:02:59]}  Nbd7 {[%clk 0:02:57]} 4. Nf3 {[%clk 0:02:58]}  e5 {[%clk 0:02:57]} 5. Bc4 {[%clk 0:02:55]}  Be7 {[%clk 0:02:57]} 6. O-O {[%clk 0:02:53]}  O-O {[%clk 0:02:56]} 7. a4 {[%clk 0:02:52]}  a6 {[%clk 0:02:52]} 8. Re1 {[%clk 0:02:52]}  b6 {[%clk 0:02:53]} 9. Ba2 {[%clk 0:02:40]}  Bb7 {[%clk 0:02:52]} 10. Qd3 {[%clk 0:02:40]}  c6 {[%clk 0:02:38]} 11. Nh4 {[%clk 0:02:38]}  g6 {[%clk 0:01:46]} 12. Nf3 {[%clk 0:02:35]}  b5 {[%clk 0:01:40]} 13. Bh6 {[%clk 0:02:32]}  b4 {[%clk 0:01:28]} 14. Bxf8 {[%clk 0:02:23]}  Bxf8 {[%clk 0:01:28]} 15. Ne2 {[%clk 0:02:17]}  exd4 {[%clk 0:01:18]} 16. Nexd4 {[%clk 0:02:14]}  c5 {[%clk 0:01:17]} 17. Nb3 {[%clk 0:01:47]}  Qe7 {[%clk 0:01:15]} 18. Nbd2 {[%clk 0:01:46]}  Ne5 {[%clk 0:01:11]} 19. Nxe5 {[%clk 0:01:46]}  Qxe5 {[%clk 0:01:12]} 20. Nf3 {[%clk 0:01:42]}  Qf4 {[%clk 0:00:46]} 21. e5 {[%clk 0:01:40]}  Ng4 {[%clk 0:00:21]} 22. h3 {[%clk 0:00:59]}  Bxf3 {[%clk 0:00:19]} 23. hxg4 {[%clk 0:00:57]}  Bxg4 {[%clk 0:00:17]} 24. Re4 {[%clk 0:00:45]}  Qg5 {[%clk 0:00:00]} 25. exd6 {[%clk 0:00:37]} 1-0


[Site "https://www.chess.com"]